fUST/lending_fUST_20260211
["ID","MTS","AMOUNT","RATE_DAILY","PERIOD"]
[405095943,1770798123894,-281.47109072,0.00042757,30]
[405095944,1770798123988,-2154.33977666,0.00042757,30]
[405095945,1770798124083,-432731.0495,0.00042757,60]
[405095946,1770798124176,-374906.06845367,0.00042757,60]
[405095947,1770798124269,-16956.96554208,0.00042757,120]
[405095948,1770798124352,-39943.88021972,0.00042757,120]
[405095949,1770798124437,-1132004.59141055,0.00042757,120]
[405095950,1770798130105,-119370.05279532,0.00042757,120]
[405095951,1770798130193,-173.02175959,0.00042757,120]
[405095952,1770798130285,-914.27704467,0.00042757,120]
[405095953,1770798130479,-179.7849,0.00042757,60]
[405095954,1770798130569,-1691.42223664,0.00042757,120]
[405095955,1770798130653,-800.0,0.00042757,30]
[405095956,1770798130734,-421.82127105,0.00042757,120]
[405095957,1770798130809,-3046.14518154,0.00042757,120]
[405095958,1770798130894,-162.1225281,0.00042757,120]
[405095959,1770798130978,-150.47369789,0.00042757,120]
[405095960,1770798131060,-157.37515842,0.00042757,60]
[405095961,1770798131139,-154.98670585,0.00042757,31]
[405095962,1770798131219,-1415.43567785,0.00042757,120]
[405095963,1770798131301,-757.64817045,0.00042757,120]
[405095964,1770798131378,-338.9227146,0.00042757,120]
[405095965,1770798131456,-378.82408522,0.00042757,120]
[405095966,1770798131541,-50963.01,0.00042757,120]
[405095967,1770798131622,-608.0,0.00042757,30]
[405095968,1770798131696,-25000.0,0.00042757,120]
[405095969,1770798131770,-485.24936818,0.00042757,120]
[405095970,1770798131851,-9180.26,0.00042757,120]
[405095971,1770798131937,-79053.7456498,0.00042757,33]
[405095972,1770798132015,-601.0,0.00042757,120]
[405095973,1770798132103,-151348.3482543,0.00042757,30]
[405095974,1770798132189,-8283.61248801,0.00042757,33]
[405095975,1770798132280,-1454.00608994,0.00042757,60]
[405095976,1770798132367,-500.00204261,0.00042757,120]
[405095977,1770798132460,-250.00102131,0.00042757,120]
[405095978,1770798132556,-1542160.45115866,0.00042757,30]
[405095979,1770798135615,-730158.29612469,0.00042757,30]
[405095980,1770798135709,-4998.85736622,0.00042757,120]
[405095981,1770798135784,-30126.94047336,0.00042757,30]
[405095982,1770798135859,-250.0010213,0.00042757,120]
[405095983,1770798135946,-1000318.40328412,0.00042757,30]
[405095984,1770798136036,-96687.82647338,0.00042757,30]
[405095985,1770798136120,-59618.05967249,0.00042757,30]
[405095986,1770798136199,-30465.38021376,0.00042757,30]
[405095987,1770798136279,-18153.90168753,0.00042757,30]
[405095988,1770798136354,-29222.33368315,0.00042757,30]
[405095989,1770798148836,-110021.25295455,0.00042757,30]
[405095990,1770798148912,-10783.62114119,0.00042757,30]
[405095991,1770798148994,-256.674855,0.00042757,120]
[405095992,1770798149068,-34888.354,0.00042757,30]
[405095993,1770798149140,-168.50386944,0.00042757,120]
[405095994,1770798149219,-168.50386944,0.00042757,120]
[405095995,1770798149303,-168.50386944,0.00042757,120]
[405095996,1770798149390,-168.50386944,0.00042757,120]
[405095997,1770798149473,-168.50386944,0.00042757,120]
[405095998,1770798149545,-168.50386944,0.00042757,120]
[405095999,1770798149618,-168.50386944,0.00042757,120]
[405096000,1770798149698,-196.58784767,0.00042757,120]
[405096001,1770798149773,-196.58784767,0.00042757,120]
[405096002,1770798149854,-196.58784767,0.00042757,120]
[405096003,1770798149943,-196.58784767,0.00042757,120]
[405096004,1770798150024,-196.58784767,0.00042757,120]
[405096005,1770798150115,-196.58784767,0.00042757,120]
[405096006,1770798150198,-196.58784767,0.00042757,120]
[405096007,1770798150285,-196.58784766,0.00042757,120]
[405096008,1770798150381,-163.77463717,0.00042757,120]
[405096009,1770798150465,-255.9,0.00042757,120]
[405096010,1770798150545,-258.65988031,0.00042757,120]
[405096011,1770798150620,-167.84577184,0.00042757,120]
[405096012,1770798150695,-167.84577184,0.00042757,120]
[405096013,1770798150777,-258.65988031,0.00042757,120]
[405096014,1770798150877,-258.65988031,0.00042757,120]
[405096015,1770798150962,-1028.61334745,0.00042757,120]
[405096016,1770798151058,-701.0,0.00042757,120]
[405096017,1770798151146,-218.2581203,0.00042757,120]
[405096018,1770798151239,-308.66006505,0.00042757,30]
[405096019,1770798151329,-998.58469006,0.00042757,30]
[405096020,1770798151426,-154.37835006,0.00042757,30]
[405096021,1770798151508,-391.79037399,0.00042757,30]
[405096022,1770798151591,-225.63961216,0.00042757,120]
[405096023,1770798151688,-194.31895025,0.00042757,120]
[405096024,1770798151782,-225.63961216,0.00042757,120]
[405096025,1770798151878,-225.63961216,0.00042757,120]
[405096026,1770798151976,-225.63961216,0.00042757,120]
[405096027,1770798152059,-225.63961216,0.00042757,120]
[405096028,1770798152148,-225.63961216,0.00042757,120]
[405096029,1770798152226,-225.63961216,0.00042757,120]
[405096030,1770798152317,-225.63961216,0.00042757,120]
[405096031,1770798152418,-225.63961216,0.00042757,120]
[405096032,1770798152515,-225.63961216,0.00042757,120]
[405096033,1770798152603,-225.63961216,0.00042757,120]
[405096034,1770798152695,-225.63961216,0.00042757,120]
[405096035,1770798152782,-225.63961216,0.00042757,120]
[405096036,1770798152872,-225.63961216,0.00042757,120]
[405096037,1770798152965,-225.63961211,0.00042757,120]
[405096038,1770798153062,-167.49085556,0.00042757,120]
[405096039,1770798153166,-167.49085556,0.00042757,120]
[405096040,1770798153264,-1732.42609459,0.00042757,120]
[405096041,1770798153361,-165.71226259,0.00042757,120]
[405096042,1770798153449,-241.04221617,0.00042757,120]
[405096043,1770798153536,-171.08101477,0.00042757,120]
[405096044,1770798153629,-165.71226259,0.00042757,120]
[405096045,1770798153716,-171.08101476,0.00042757,120]
[405096046,1770798153885,-439.0940773,0.00042757,120]
[405096047,1770798154011,-247.73458042,0.00042757,120]
[405096048,1770798154099,-187.56504322,0.00042757,120]
[405096049,1770798154190,-327.9555023,0.00042757,120]
[405096050,1770798154279,-153.89083225,0.00042757,120]
[405096051,1770798154360,-122676.0,0.00042757,120]
[405096052,1770798154439,-9905.0,0.00042757,120]
[405096053,1770798154516,-184.0,0.00042757,120]
[405096054,1770798154595,-152.8914942,0.00042757,120]
[405096055,1770798154680,-152.8914942,0.00042757,120]
[405096056,1770798154755,-152.8914942,0.00042757,120]
[405096057,1770798154830,-152.8914942,0.00042757,120]
[405096058,1770798154919,-152.8914942,0.00042757,120]
[405096059,1770798155013,-152.8914942,0.00042757,120]
[405096060,1770798155096,-152.8914942,0.00042757,120]
[405096061,1770798155181,-47566.41250804,0.00042757,120]
[405096062,1770798155268,-1457.47569987,0.00042757,120]
[405096063,1770798155358,-219.54703865,0.00042757,120]
[405096064,1770798155449,-228.08085007,0.00042757,120]
[405096065,1770798155544,-228.08085007,0.00042757,120]
[405096066,1770798155633,-228.08085007,0.00042757,120]
[405096067,1770798155714,-228.08085007,0.00042757,120]
[405096068,1770798155793,-228.08085007,0.00042757,120]
[405096069,1770798155873,-228.08085007,0.00042757,120]
[405096070,1770798155952,-228.08085007,0.00042757,120]
[405096071,1770798156036,-228.08085007,0.00042757,120]
[405096072,1770798156118,-194.31895024,0.00042757,120]
[405096073,1770798156193,-219.54703864,0.00042757,120]
[405096074,1770798156271,-500.0,0.00042757,30]
[405096075,1770798156344,-500.0,0.00042757,30]
[405096076,1770798156423,-503.58853701,0.00042757,30]
[405096077,1770798156499,-158.42205178,0.00042757,120]
[405096078,1770798156585,-158.42205178,0.00042757,120]
[405096079,1770798156659,-158.42205178,0.00042757,120]
[405096080,1770798156730,-10000.0,0.00042757,120]
[405096081,1770798156799,-10000.0,0.00042757,120]
[405096082,1770798156869,-10000.0,0.00042757,120]
[405096083,1770798156948,-10000.0,0.00042757,120]
[405096084,1770798157036,-10000.0,0.00042757,120]
[405096085,1770798157119,-10000.0,0.00042757,120]
[405096086,1770798157190,-10000.0,0.00042757,120]
[405096087,1770798157263,-10000.0,0.00042757,120]
[405096088,1770798157345,-10000.0,0.00042757,120]
[405096089,1770798157422,-10000.0,0.00042757,120]
[405096090,1770798157501,-10000.0,0.00042757,120]
[405096091,1770798157578,-10000.0,0.00042757,120]
[405096092,1770798157658,-194.31895025,0.00042757,120]
[405096093,1770798157736,-5132.931541,0.00042757,120]
[405096094,1770798157808,-185.953979,0.00042757,30]
[405096095,1770798157888,-185.953979,0.00042757,30]
[405096096,1770798157974,-185.9859266,0.00042757,30]
[405096097,1770798158061,-379.9324511,0.00042757,30]
[405096098,1770798158152,-379.9324511,0.00042757,30]
[405096099,1770798158229,-187.5736041,0.00042757,30]
[405096100,1770798158314,-306.6092153,0.00042757,30]
[405096101,1770798158394,-605.6861769,0.00042757,30]
[405096102,1770798158468,-605.8269257,0.00042757,30]
[405096103,1770798158543,-379.8252637,0.00042757,30]
[405096104,1770798158615,-379.9324511,0.00042757,30]
[405096105,1770798158687,-379.7196327,0.00042757,30]
[405096106,1770798158759,-185.953979,0.00042757,30]
[405096107,1770798158829,-195.2751375,0.00042757,30]
[405096108,1770798158907,-185.9859266,0.00042757,30]
[405096109,1770798158990,-379.8252636,0.00042757,30]
[405096110,1770798159080,-306.4985353,0.00042757,30]
[405096111,1770798159158,-605.8269257,0.00042757,30]
[405096112,1770798159245,-195.2751375,0.00042757,30]
[405096113,1770798159339,-605.8269257,0.00042757,30]
[405096114,1770798159424,-379.8252637,0.00042757,30]
[405096115,1770798159503,-234.5746768,0.00042757,30]
[405096116,1770798159587,-195.2290534,0.00042757,30]
[405096117,1770798159678,-304.9618852,0.00042757,30]
[405096118,1770798159764,-185.953979,0.00042757,30]
[405096119,1770798159938,-379.9324511,0.00042757,30]
[405096120,1770798160028,-195.2290534,0.00042757,30]
[405096121,1770798160134,-379.9324511,0.00042757,30]
[405096122,1770798160233,-306.4985353,0.00042757,30]
[405096123,1770798160327,-185.953979,0.00042757,30]
[405096124,1770798160411,-379.9324511,0.00042757,30]
[405096125,1770798160487,-597.981769,0.00042757,30]
[405096126,1770798160568,-195.2290534,0.00042757,30]
[405096127,1770798160650,-389.2577537,0.00042757,30]
[405096128,1770798160731,-306.6092153,0.00042757,30]
[405096129,1770798160815,-151.0,0.00042757,120]
[405096130,1770798160893,-199.2844584,0.00042757,30]
[405096131,1770798160971,-151.0,0.00042757,120]
[405096132,1770798161060,-151.0,0.00042757,120]
[405096133,1770798161148,-151.0,0.00042757,120]
[405096134,1770798161226,-152.464046,0.00042757,120]
[405096135,1770798161311,-151.0,0.00042757,120]
[405096136,1770798161387,-151.0,0.00042757,120]
[405096137,1770798161460,-153.27346,0.00042757,120]
[405096138,1770798161538,-379.8252637,0.00042757,30]
[405096139,1770798161616,-185.953979,0.00042757,30]
[405096140,1770798161694,-306.4985353,0.00042757,30]
[405096141,1770798161768,-151.0,0.00042757,120]
[405096142,1770798161845,-151.0,0.00042757,120]
[405096143,1770798161926,-151.0,0.00042757,120]
[405096144,1770798162007,-151.0,0.00042757,120]
[405096145,1770798162093,-201.578378,0.00042757,120]
[405096146,1770798162181,-379.8252637,0.00042757,30]
[405096147,1770798162265,-185.953979,0.00042757,30]
[405096148,1770798162345,-185.953979,0.00042757,30]
[405096149,1770798162422,-379.9324511,0.00042757,30]
[405096150,1770798162504,-217.1821996,0.00042757,30]
[405096151,1770798162589,-306.4985353,0.00042757,30]
[405096152,1770798162670,-192.0570391,0.00042757,30]
[405096153,1770798162747,-605.6861769,0.00042757,30]
[405096154,1770798162824,-150.0,0.00042757,30]
[405096155,1770798162901,-379.8252637,0.00042757,30]
[405096156,1770798162983,-306.4985353,0.00042757,30]
[405096157,1770798163065,-185.953979,0.00042757,30]
[405096158,1770798163156,-379.8252637,0.00042757,30]
[405096159,1770798163241,-185.9859266,0.00042757,30]
[405096160,1770798163323,-605.4332654,0.00042757,30]
[405096161,1770798163396,-306.6092153,0.00042757,30]
[405096162,1770798163466,-195.2290534,0.00042757,30]
[405096163,1770798163545,-380.0211895,0.00042757,30]
[405096164,1770798163616,-151.0,0.00042757,120]
[405096165,1770798163690,-158.318814,0.00042757,120]
[405096166,1770798163760,-150.0,0.00042757,30]
[405096167,1770798163830,-198.6908817,0.00042757,30]
[405096168,1770798163906,-605.6861769,0.00042757,30]
[405096169,1770798163989,-306.4985353,0.00042757,30]
[405096170,1770798164069,-379.8252637,0.00042757,30]
[405096171,1770798164146,-306.4985353,0.00042757,30]
[405096172,1770798164227,-152.0063305,0.00042757,30]
[405096173,1770798164314,-195.3144765,0.00042757,30]
[405096174,1770798164395,-306.6092153,0.00042757,30]
[405096175,1770798164465,-605.8269257,0.00042757,30]
[405096176,1770798164543,-151.0,0.00042757,120]
[405096177,1770798164621,-181.735512,0.00042757,120]
[405096178,1770798164695,-379.8252637,0.00042757,30]
[405096179,1770798164769,-605.6861769,0.00042757,30]
[405096180,1770798164844,-379.8252637,0.00042757,30]
[405096181,1770798164933,-150.0,0.00042757,30]
[405096182,1770798165012,-195.2290534,0.00042757,30]
[405096183,1770798165097,-306.6092153,0.00042757,30]
[405096184,1770798165181,-379.9324511,0.00042757,30]
[405096185,1770798165268,-185.953979,0.00042757,30]
[405096186,1770798165383,-605.6861772,0.00042757,30]
[405096187,1770798165473,-185.953979,0.00042757,30]
[405096188,1770798165552,-234.1580906,0.00042757,30]
[405096189,1770798165635,-306.6092153,0.00042757,30]
[405096190,1770798165722,-1542.709073,0.00042757,120]
[405096191,1770798165807,-213.49164856,0.00042757,120]
[405096192,1770798165884,-1542.709073,0.00042757,120]
[405096193,1770798165961,-213.49164856,0.00042757,120]
[405096194,1770798166036,-1542.709073,0.00042757,120]
[405096195,1770798166119,-213.49164856,0.00042757,120]
[405096196,1770798166307,-1542.709073,0.00042757,120]
[405096197,1770798166386,-1542.709073,0.00042757,120]
[405096198,1770798166462,-1542.709073,0.00042757,120]
[405096199,1770798166546,-1542.709073,0.00042757,120]
[405096200,1770798166623,-1542.709073,0.00042757,120]
[405096201,1770798166692,-1542.709073,0.00042757,120]
[405096202,1770798166764,-1542.709073,0.00042757,120]
[405096203,1770798166839,-1542.709073,0.00042757,120]
[405096204,1770798166935,-1542.709073,0.00042757,120]
[405096205,1770798167028,-1542.709073,0.00042757,120]
[405096206,1770798167113,-1542.709073,0.00042757,120]
[405096207,1770798167194,-1542.709073,0.00042757,120]
[405096208,1770798167280,-195.2290534,0.00042757,30]
[405096209,1770798167366,-1542.709073,0.00042757,120]
[405096210,1770798167451,-1542.709073,0.00042757,120]
[405096211,1770798167532,-1542.709073,0.00042757,120]
[405096212,1770798167621,-1542.709073,0.00042757,120]
[405096213,1770798167702,-1542.709073,0.00042757,120]
[405096214,1770798167780,-1542.709073,0.00042757,120]
[405096215,1770798167861,-1542.709073,0.00042757,120]
[405096216,1770798167944,-185.9859266,0.00042757,30]
[405096217,1770798168036,-605.6861769,0.00042757,30]
[405096218,1770798168123,-1542.709073,0.00042757,120]
[405096219,1770798168214,-379.9324511,0.00042757,30]
[405096220,1770798168296,-1542.709073,0.00042757,120]
[405096221,1770798168370,-306.6092153,0.00042757,30]
[405096222,1770798168444,-1542.709073,0.00042757,120]
[405096223,1770798168520,-1542.709073,0.00042757,120]
[405096224,1770798168599,-1542.709073,0.00042757,120]
[405096225,1770798168672,-1542.709073,0.00042757,120]
[405096226,1770798168747,-1542.709073,0.00042757,120]
[405096227,1770798168832,-1542.709073,0.00042757,120]
[405096228,1770798168920,-1542.709073,0.00042757,120]
[405096229,1770798169000,-1542.709073,0.00042757,120]
[405096230,1770798169077,-1542.709073,0.00042757,120]
[405096231,1770798169159,-1542.709073,0.00042757,120]
[405096232,1770798169245,-1542.709073,0.00042757,120]
[405096233,1770798169326,-1542.709073,0.00042757,120]
[405096234,1770798169410,-1542.709073,0.00042757,120]
[405096235,1770798169499,-1542.709073,0.00042757,120]
[405096236,1770798169584,-1542.709073,0.00042757,120]
[405096237,1770798169668,-1542.709073,0.00042757,120]
[405096238,1770798169748,-1542.709073,0.00042757,120]
[405096239,1770798169833,-1542.709073,0.00042757,120]
[405096240,1770798169927,-1542.709073,0.00042757,120]
[405096241,1770798170011,-1542.709073,0.00042757,120]
[405096242,1770798170097,-1542.709073,0.00042757,120]
[405096243,1770798170184,-1542.709073,0.00042757,120]
[405096244,1770798170277,-1542.709073,0.00042757,120]
[405096245,1770798170357,-1542.709073,0.00042757,120]
[405096246,1770798170431,-1542.709073,0.00042757,120]
[405096247,1770798170504,-1542.709073,0.00042757,120]
[405096248,1770798170584,-150.0,0.00042757,30]
[405096249,1770798170657,-379.9324511,0.00042757,30]
[405096250,1770798170738,-188.7653617,0.00042757,30]
[405096251,1770798170827,-306.6092153,0.00042757,30]
[405096252,1770798170915,-379.8252637,0.00042757,30]
[405096253,1770798170993,-185.953979,0.00042757,30]
[405096254,1770798171080,-605.8269257,0.00042757,30]
[405096255,1770798171166,-379.8252637,0.00042757,30]
[405096256,1770798171256,-185.953979,0.00042757,30]
[405096257,1770798171339,-150.0,0.00042757,30]
[405096258,1770798171416,-195.2751375,0.00042757,30]
[405096259,1770798171493,-605.9390884,0.00042757,30]
[405096260,1770798171572,-185.9859266,0.00042757,30]
[405096261,1770798171651,-151.0,0.00042757,120]
[405096262,1770798171727,-605.6861769,0.00042757,30]
[405096263,1770798171804,-185.953979,0.00042757,30]
[405096264,1770798171897,-379.9324511,0.00042757,30]
[405096265,1770798171973,-313.9850199,0.00042757,30]
[405096266,1770798172049,-150.0,0.00042757,30]
[405096267,1770798172124,-379.8252637,0.00042757,30]
[405096268,1770798172204,-185.9859266,0.00042757,30]
[405096269,1770798172281,-605.6861769,0.00042757,30]
[405096270,1770798172352,-306.6092153,0.00042757,30]
[405096271,1770798172424,-151.0,0.00042757,120]
[405096272,1770798172638,-151.0,0.00042757,120]
[405096273,1770798172707,-151.0,0.00042757,120]
[405096274,1770798172776,-151.0,0.00042757,120]
[405096275,1770798172847,-151.0,0.00042757,120]
[405096276,1770798172914,-151.0,0.00042757,120]
[405096277,1770798172982,-151.0,0.00042757,120]
[405096278,1770798173052,-153.667282,0.00042757,120]
[405096279,1770798173122,-306.4985353,0.00042757,30]
[405096280,1770798173195,-379.8252637,0.00042757,30]
[405096281,1770798173268,-185.953979,0.00042757,30]
[405096282,1770798173348,-605.6861769,0.00042757,30]
[405096283,1770798173420,-195.2290534,0.00042757,30]
[405096284,1770798173491,-379.8252637,0.00042757,30]
[405096285,1770798173565,-605.6861769,0.00042757,30]
[405096286,1770798173649,-151.0,0.00042757,120]
[405096287,1770798173715,-151.0,0.00042757,120]
[405096288,1770798173785,-151.0,0.00042757,120]
[405096289,1770798173862,-151.0,0.00042757,120]
[405096290,1770798173934,-151.0,0.00042757,120]
[405096291,1770798174002,-151.0,0.00042757,120]
[405096292,1770798174074,-151.0,0.00042757,120]
[405096293,1770798174149,-300.239119,0.00042757,120]
[405096294,1770798174224,-185.953979,0.00042757,30]
[405096295,1770798174300,-605.6861769,0.00042757,30]
[405096296,1770798174369,-615.5564948,0.00042757,30]
[405096297,1770798174435,-185.953979,0.00042757,30]
[405096298,1770798174505,-151.0,0.00042757,120]
[405096299,1770798174575,-150.0,0.00042757,30]
[405096300,1770798174643,-316.2383736,0.00042757,30]
[405096301,1770798174706,-379.9324511,0.00042757,30]
[405096302,1770798174769,-185.953979,0.00042757,30]
[405096303,1770798174833,-274.8215087,0.00042757,30]
[405096304,1770798174901,-379.8252637,0.00042757,30]
[405096305,1770798174969,-150.0,0.00042757,30]
[405096306,1770798175039,-306.4985352,0.00042757,30]
[405096307,1770798175107,-187.9132853,0.00042757,30]
[405096308,1770798175179,-605.355108,0.00042757,30]
[405096309,1770798175249,-185.953979,0.00042757,30]
[405096310,1770798175343,-306.6092153,0.00042757,30]
[405096311,1770798175432,-605.6861769,0.00042757,30]
[405096312,1770798175509,-195.2290534,0.00042757,30]
[405096313,1770798175584,-379.8252637,0.00042757,30]
[405096314,1770798175655,-362.7872006,0.00042757,30]
[405096315,1770798175718,-605.6861769,0.00042757,30]
[405096316,1770798175781,-195.2290534,0.00042757,30]
[405096317,1770798175846,-150.0,0.00042757,30]
[405096318,1770798175913,-306.4985353,0.00042757,30]
[405096319,1770798175980,-379.8252637,0.00042757,30]
[405096320,1770798176047,-605.6861769,0.00042757,30]
[405096321,1770798176112,-185.953979,0.00042757,30]
[405096322,1770798176177,-379.9324511,0.00042757,30]
[405096323,1770798176243,-379.8252637,0.00042757,30]
[405096324,1770798176309,-306.4985353,0.00042757,30]
[405096325,1770798176373,-605.8269257,0.00042757,30]
[405096326,1770798176435,-150.0,0.00042757,30]
[405096327,1770798176506,-306.4985353,0.00042757,30]
[405096328,1770798176570,-158.6334042,0.00042757,30]
[405096329,1770798176634,-185.953979,0.00042757,30]
[405096330,1770798176698,-605.6861769,0.00042757,30]
[405096331,1770798176764,-379.9324511,0.00042757,30]
[405096332,1770798176829,-306.4985353,0.00042757,30]
[405096333,1770798176903,-195.2290534,0.00042757,30]
[405096334,1770798176973,-306.4985353,0.00042757,30]
[405096335,1770798177039,-380.0211895,0.00042757,30]
[405096336,1770798177108,-185.9859266,0.00042757,30]
[405096337,1770798177176,-150.0,0.00042757,30]
[405096338,1770798177243,-195.2290534,0.00042757,30]
[405096339,1770798177309,-605.6861769,0.00042757,30]
[405096340,1770798177385,-306.6092153,0.00042757,30]
[405096341,1770798177458,-185.953979,0.00042757,30]
[405096342,1770798177528,-379.9324511,0.00042757,30]
[405096343,1770798177600,-379.8252637,0.00042757,30]
[405096344,1770798177674,-306.4985353,0.00042757,30]
[405096345,1770798177747,-195.1368852,0.00042757,30]
[405096346,1770798177818,-306.4985353,0.00042757,30]
[405096347,1770798177985,-182.8811607,0.00042757,30]
[405096348,1770798178058,-185.9859266,0.00042757,30]
[405096349,1770798178128,-379.8252637,0.00042757,30]
[405096350,1770798178201,-306.4985353,0.00042757,30]
[405096351,1770798178272,-185.953979,0.00042757,30]
[405096352,1770798178338,-150.0,0.00042757,30]
[405096353,1770798178402,-379.9324511,0.00042757,30]
[405096354,1770798178466,-150.0,0.00042757,30]
[405096355,1770798178533,-217.8631891,0.00042757,30]
[405096356,1770798178600,-605.6861769,0.00042757,30]
[405096357,1770798178664,-306.7199122,0.00042757,30]
[405096358,1770798178726,-150.0,0.00042757,30]
[405096359,1770798178792,-379.9324511,0.00042757,30]
[405096360,1770798178859,-605.6861769,0.00042757,30]
[405096361,1770798178928,-306.4985353,0.00042757,30]
[405096362,1770798179008,-185.9859266,0.00042757,30]
[405096363,1770798179086,-186.4385563,0.00042757,30]
[405096364,1770798179157,-185.953979,0.00042757,30]
[405096365,1770798179228,-379.8252637,0.00042757,30]
[405096366,1770798179296,-195.2290534,0.00042757,30]
[405096367,1770798179363,-387.74143,0.00042757,30]
[405096368,1770798179432,-306.4985353,0.00042757,30]
[405096369,1770798179497,-195.2290534,0.00042757,30]
[405096370,1770798179568,-150.0,0.00042757,30]
[405096371,1770798179635,-379.9324511,0.00042757,30]
[405096372,1770798179699,-185.9859266,0.00042757,30]
[405096373,1770798179762,-306.6092153,0.00042757,30]
[405096374,1770798179828,-150.0,0.00042757,30]
[405096375,1770798179898,-195.2290534,0.00042757,30]
[405096376,1770798179968,-605.6861769,0.00042757,30]
[405096377,1770798180040,-187.3878002,0.00042757,30]
[405096378,1770798180113,-379.9324511,0.00042757,30]
[405096379,1770798180197,-379.9324511,0.00042757,30]
[405096380,1770798180299,-185.953979,0.00042757,30]
[405096381,1770798180381,-152.5008627,0.00042757,30]
[405096382,1770798180457,-195.2290534,0.00042757,30]
[405096383,1770798180537,-306.6092153,0.00042757,30]
[405096384,1770798180613,-185.953979,0.00042757,30]
[405096385,1770798180683,-195.2290534,0.00042757,30]
[405096386,1770798180752,-150.0,0.00042757,30]
[405096387,1770798180820,-605.6861769,0.00042757,30]
[405096388,1770798180891,-306.4985353,0.00042757,30]
[405096389,1770798180963,-379.9324511,0.00042757,30]
[405096390,1770798181031,-345.8846795,0.00042757,30]
[405096391,1770798181100,-185.953979,0.00042757,30]
[405096392,1770798181171,-605.8269257,0.00042757,30]
[405096393,1770798181239,-379.9324511,0.00042757,30]
[405096394,1770798181308,-1437.2397765,0.00042757,120]
[405096395,1770798181374,-306.6092153,0.00042757,30]
[405096397,1770798278087,229.28078788,0.00030136,120]
[405096398,1770798304715,739.32479363,0.00030137,120]
[405096399,1770798325918,500.0,0.00013699,2]
[405096400,1770798325972,500.0,0.00014247,2]
[405096620,1770798396108,-678.18586561,0.00023969,2]
[405096621,1770798419381,627.2372997,0.00030137,120]
[405096622,1770798423792,936.0506,0.00023945,120]
[405096623,1770798423962,936.0506,0.00024312,120]
[405096624,1770798424110,936.0506,0.00024434,120]
[405096625,1770798424251,936.0506,0.00024678,120]
[405096626,1770798424428,936.0506,0.00024923,120]
[405096627,1770798436129,-315.26653547,0.00023969,2]
[405096628,1770798445090,-357.7290917,0.00023969,2]
[405096629,1770798449089,-179.62129794,0.00023969,2]
[405096630,1770798449118,-3469.19720928,0.00023969,2]
[405096631,1770798449152,-1342.47539573,0.00024329,2]
[405096632,1770798449179,-175.96471532,0.00024705,2]
[405096633,1770798449204,-2688.66361564,0.00025804,2]
[405096634,1770798449227,-1200.0,0.00026029,2]
[405096635,1770798449249,-300.0,0.00026571,2]
[405096636,1770798449269,-300.0,0.00026571,2]
[405096637,1770798449291,-300.0,0.00026572,2]
[405096638,1770798449312,-300.0,0.00026572,2]
[405096639,1770798449334,-207.63836408,0.00026705,2]
[405096640,1770798449357,-500.0,0.00027261,2]
[405096641,1770798449383,-500.0,0.00027261,2]
[405096642,1770798449405,-500.0,0.00027261,2]
[405096643,1770798449427,-500.0,0.00027261,2]
[405096644,1770798449450,-500.0,0.00027261,2]
[405096645,1770798449473,-209.02806513,0.00027261,2]
[405096646,1770798449498,-165.77128858,0.00027261,2]
[405096647,1770798449522,-500.0,0.00027261,2]
[405096648,1770798449546,-203.98783898,0.00027261,2]
[405096650,1770798464784,182.29616108,0.0002738,120]
[405096651,1770798493187,188.0,0.0002,120]
[405096653,1770798509730,183.92565643,0.0003,120]
[405096654,1770798511779,172.82722093,0.00022,10]
[405096655,1770798512894,1043.59268319,0.000215,2]
[405096656,1770798514666,263.78305273,0.0003,120]
[405096657,1770798517125,204.06865828,0.0002739,120]
[405096659,1770798518385,1315.95184443,0.000215,2]
[405096662,1770798521644,188.92289436,0.00030136,120]
[405096663,1770798522299,249.0,0.0002,120]
[405096664,1770798524143,222.24124615,0.0002876,120]
[405096665,1770798524466,161.30346457,0.0002,120]
[405096666,1770798525289,421.86710909,0.0003013,120]
[405096667,1770798548089,-1541.15008644,0.0002465,2]